bitfinex-derivatives/quotes_BTCF0:USTF0_20241117
["timestamp","ask_amount","ask_price","bid_price","bid_amount"]
[1731843089480,0.3608,90702.0,90699.0,0.055124]
[1731843089679,0.3608,90702.0,90700.0,0.055123]
[1731843090293,0.3608,90710.0,90708.0,0.055118]
[1731843090699,0.0622,90720.0,90709.0,0.00735096]
[1731843090991,0.00165425,90722.0,90718.0,0.055112]
[1731843091184,0.055111,90721.0,90719.0,0.00735096]
[1731843091385,0.3608,90731.0,90719.0,0.00735096]
[1731843091386,0.0051,90741.0,90740.0,0.055099]
[1731843091585,0.0051,90741.0,90720.0,0.36815411]
[1731843091586,0.3608,90746.0,90741.0,0.055099]
[1731843091785,0.3608,90746.0,90738.0,0.0948]
[1731843091993,0.3608,90746.0,90739.0,1.5]
[1731843092293,0.3608,90744.0,90739.0,1.5]
[1731843092693,0.3608,90744.0,90740.0,0.00735515]
[1731843092892,0.3608,90744.0,90739.0,1.50076]
[1731843093097,0.3608,90744.0,90740.0,0.00729517]
[1731843093305,0.3608,90744.0,90739.0,1.50084]
[1731843093589,0.3608,90744.0,90739.0,1.5]
[1731843094396,0.3608,90744.0,90740.0,0.00574319]
[1731843094603,0.3608,90744.0,90741.0,0.00574319]
[1731843095299,0.3608,90744.0,90739.0,1.50076]
[1731843095594,0.3608,90744.0,90740.0,0.00570623]
[1731843095789,0.3608,90744.0,90739.0,1.555939]
[1731843096102,0.00108833,90742.0,90740.0,0.00927132]
[1731843096298,0.00108833,90742.0,90741.0,0.0035652]
[1731843097797,8.833e-05,90742.0,90741.0,0.00937955]
[1731843098092,0.00108833,90742.0,90741.0,0.00937955]
[1731843098291,0.00108833,90742.0,90741.0,0.0035652]
[1731843099688,0.00108833,90742.0,90740.0,0.055099]
[1731843099988,8.833e-05,90742.0,90741.0,0.0036242]
[1731843100600,0.05518733,90742.0,90741.0,0.0036239]
[1731843100802,0.055101,90737.0,90736.0,0.0008]
[1731843101096,0.055101,90737.0,90722.0,0.05511]
[1731843101097,0.05511,90723.0,90722.0,0.05511]
[1731843101295,0.055111,90721.0,90720.0,0.00165335]
[1731843101499,0.3608,90723.0,90709.0,0.055118]
[1731843101500,0.055116,90713.0,90709.0,0.055118]
[1731843101696,0.3608,90710.0,90709.0,0.055118]
[1731843101891,0.3608,90710.0,90709.0,0.06091533]
[1731843102799,0.3608,90710.0,90709.0,0.055118]
[1731843108805,0.3608,90710.0,90709.0,1.555118]
[1731843112205,0.055118,90709.0,90702.0,0.055122]
[1731843112403,0.055118,90709.0,90704.0,0.055121]
[1731843112701,0.055118,90709.0,90705.0,1.5]
[1731843113306,0.055118,90709.0,90707.0,0.055119]
[1731843114801,0.055118,90709.0,90708.0,0.00350596]
[1731843115006,0.055118,90709.0,90707.0,0.055119]
[1731843115199,0.055118,90709.0,90708.0,0.00350596]
[1731843115799,0.055118,90709.0,90707.0,0.055119]
[1731843116200,0.055118,90709.0,90708.0,0.0034978]
[1731843116606,0.055118,90709.0,90708.0,0.00349778]
[1731843118908,0.055118,90709.0,90708.0,0.00350525]
[1731843121815,0.055118,90709.0,90705.0,1.50076]
[1731843121816,0.05512,90706.0,90705.0,0.00076]
[1731843122002,0.16307005,90706.0,90696.0,9.041e-05]
[1731843122205,0.3608,90710.0,90696.0,1.55521641]
[1731843122206,0.3608,90697.0,90696.0,1.55521641]
[1731843125312,0.3628,90697.0,90696.0,1.56221641]
[1731843126519,0.417925,90697.0,90696.0,1.56221641]
[1731843127619,0.3628,90697.0,90696.0,1.56221641]
[1731843129923,0.3628,90697.0,90696.0,1.56567824]
[1731843132519,0.41642919,90697.0,90696.0,1.56567824]
[1731843133125,0.41642929,90697.0,90696.0,1.56567824]
[1731843134317,0.41642929,90697.0,90696.0,1.56221641]
[1731843134513,0.47155429,90697.0,90696.0,1.56566446]
[1731843136625,0.66784298,90697.0,90696.0,1.56566446]
[1731843137420,0.61271798,90697.0,90696.0,1.56566446]
[1731843137926,0.05562929,90697.0,90696.0,1.56566446]
[1731843138131,0.3608,90708.0,90699.0,0.055124]
[1731843138132,0.55708869,90708.0,90699.0,0.055124]
[1731843138445,0.3608,90708.0,90697.0,0.09464]
[1731843138618,0.16360724,90700.0,90699.0,0.055124]
[1731843139229,0.16360724,90700.0,90699.0,0.06408785]
[1731843139427,0.3608,90708.0,90699.0,0.00896385]
[1731843139730,0.3608,90708.0,90707.0,0.055119]
[1731843139927,0.3608,90708.0,90707.0,0.05856663]
[1731843140129,0.3608,90708.0,90707.0,0.06415653]
[1731843140828,0.3608,90708.0,90707.0,0.06420207]
[1731843141523,0.415914,90717.0,90707.0,0.17444653]
[1731843141524,0.3608,90716.0,90707.0,0.17444653]
[1731843141725,0.3608,90716.0,90715.0,0.055114]
[1731843141929,0.3608,90716.0,90715.0,0.06432275]
[1731843142123,0.3608,90716.0,90715.0,1.56432275]
[1731843142325,0.16420725,90726.0,90715.0,1.67501591]
[1731843142526,0.0051,90736.0,90728.0,0.055107]
[1731843142527,0.16360724,90730.0,90728.0,0.055107]
[1731843142732,0.16360724,90731.0,90728.0,0.06431575]
[1731843142924,0.16360724,90732.0,90728.0,0.06431575]
[1731843143131,0.16360724,90735.0,90728.0,0.06431575]
[1731843143517,0.055102,90736.0,90728.0,0.06431575]
[1731843144226,0.055102,90736.0,90728.0,0.05864813]
[1731843145529,0.3608,90737.0,90728.0,0.055107]
[1731843146424,0.16526106,90729.0,90728.0,0.055107]
[1731843146729,0.00165382,90729.0,90728.0,0.49950429]
[1731843147024,0.3608,90737.0,90736.0,0.055102]
[1731843147224,0.3608,90737.0,90736.0,0.15324035]
[1731843148919,8.833e-05,90742.0,90736.0,0.15324035]
[1731843149121,8.833e-05,90742.0,90741.0,0.055099]
[1731843150329,8.833e-05,90742.0,90728.0,1.57716336]
[1731843150330,0.16369557,90742.0,90728.0,1.57716336]
[1731843150536,0.16369557,90742.0,90704.0,0.3608]
[1731843150537,0.3608,90729.0,90721.0,0.05511]
[1731843150725,0.055107,90727.0,90721.0,0.05511]
[1731843150923,0.16360724,90725.0,90724.0,0.055109]
[1731843151330,0.16360724,90726.0,90724.0,0.055109]
[1731843151831,0.16360724,90727.0,90724.0,0.055109]
[1731843152627,0.16360724,90727.0,90725.0,0.055108]
[1731843153535,0.0632,90728.0,90719.0,0.0944]
[1731843153536,0.0632,90728.0,90727.0,0.055107]
[1731843159251,0.0632,90728.0,90727.0,0.05855356]
[1731843159631,0.0632,90728.0,90727.0,0.05855349]
[1731843159832,0.0332,90741.0,90727.0,0.00344649]
[1731843160039,0.0646,90741.0,90740.0,0.055099]
[1731843161336,0.0314,90741.0,90740.0,0.055099]
[1731843162345,0.0314,90741.0,90740.0,1.555099]
[1731843162645,0.0314,90741.0,90740.0,1.55854509]
[1731843163351,0.0314,90741.0,90723.0,0.055109]
[1731843163352,0.086499,90741.0,90726.0,0.05412899]
[1731843163647,0.086499,90741.0,90721.0,0.00165327]
[1731843163648,0.05511,90722.0,90721.0,0.00165327]
[1731843163833,0.3608,90722.0,90716.0,0.055114]
[1731843164034,0.055112,90720.0,90717.0,0.055113]
[1731843164232,0.055112,90720.0,90705.0,0.0944]
[1731843164233,0.055112,90720.0,90718.0,0.055113]
[1731843166935,0.0331,90719.0,90718.0,0.055113]
[1731843169950,0.0331,90719.0,90712.0,0.02205835]
[1731843169951,0.0331,90719.0,90713.0,0.055116]
[1731843170146,0.0331,90719.0,90714.0,0.055115]
[1731843170147,0.055113,90718.0,90714.0,0.055115]
[1731843170347,0.055113,90718.0,90715.0,0.055114]
[1731843170647,0.055113,90718.0,90712.0,0.02205835]
[1731843170841,0.3608,90713.0,90706.0,0.0944]
[1731843171041,0.13068391,90709.0,90698.0,1.5008]
[1731843171243,0.13068391,90704.0,90698.0,1.5008]
[1731843171549,0.21873124,90700.0,90698.0,1.5]
[1731843171856,0.0923,90699.0,90698.0,1.5]
[1731843173558,0.0923,90699.0,90697.0,0.055125]
[1731843173745,0.13056635,90698.0,90697.0,0.055125]
[1731843173950,0.0923,90699.0,90697.0,1.555125]
[1731843175654,0.0923,90699.0,90698.0,0.00344775]
[1731843176359,0.0923,90699.0,90697.0,1.555885]
[1731843176561,0.0923,90699.0,90697.0,1.555125]
[1731843177451,0.0613,90699.0,90698.0,0.00344791]
[1731843179060,0.0613,90699.0,90698.0,0.05857291]
[1731843179368,0.0308,90699.0,90698.0,0.05857291]
[1731843181353,0.3608,90705.0,90698.0,0.52962831]
[1731843181567,0.3608,90705.0,90704.0,0.055121]
[1731843181859,0.3608,90705.0,90704.0,0.05856891]
[1731843182063,0.3608,90705.0,90704.0,1.555121]
[1731843183654,0.0317,90710.0,90709.0,0.055118]
[1731843184267,0.0332,90713.0,90712.0,0.055116]
[1731843186961,0.0332,90713.0,90704.0,1.5]
[1731843187163,0.0332,90713.0,90705.0,0.0034473]
[1731843187463,0.0332,90713.0,90712.0,0.055116]
[1731843188170,0.0332,90713.0,90704.0,1.555121]
[1731843188352,0.3608,90705.0,90698.0,0.0220637]
[1731843188562,0.055122,90702.0,90700.0,0.055123]
[1731843188763,0.085123,90701.0,90698.0,0.0220637]
[1731843188970,0.085123,90701.0,90699.0,1.5]
[1731843190368,0.03,90701.0,90699.0,0.055124]
[1731843190665,0.13056642,90703.0,90702.0,0.055122]
[1731843190964,0.13046271,90708.0,90702.0,1.5585698]
[1731843191270,0.13046271,90707.0,90703.0,0.0034478]
[1731843191468,0.394,90713.0,90707.0,0.055119]
[1731843191675,0.16360724,90708.0,90707.0,0.055119]
[1731843192261,0.05362292,90708.0,90707.0,0.055119]
[1731843192569,0.05362277,90712.0,90711.0,0.055117]
[1731843192759,0.24991146,90712.0,90711.0,0.055117]
[1731843192958,0.05362277,90712.0,90711.0,0.055117]
[1731843193559,0.05362277,90712.0,90711.0,0.0585646]
[1731843193760,0.05362277,90712.0,90711.0,0.055117]
[1731843194160,0.05362277,90712.0,90711.0,0.0585645]
[1731843194356,0.055125,90697.0,90696.0,9.041e-05]
[1731843194561,0.46954777,90697.0,90696.0,9.041e-05]
[1731843195372,0.665547,90697.0,90696.0,9.041e-05]
[1731843196178,0.46954777,90697.0,90696.0,9.041e-05]
[1731843196475,0.66552874,90697.0,90696.0,9.041e-05]
[1731843196977,0.46954777,90697.0,90696.0,9.041e-05]
[1731843199864,0.415925,90697.0,90696.0,9.041e-05]
[1731843200073,0.3608,90697.0,90696.0,0.05521641]
[1731843200275,0.49143821,90697.0,90696.0,9.041e-05]
[1731843200474,0.49145246,90697.0,90696.0,9.041e-05]
[1731843200675,0.49145246,90697.0,90696.0,1.50009041]
[1731843201377,0.54657746,90697.0,90696.0,1.50009041]
[1731843201673,0.415925,90697.0,90696.0,1.50009041]
[1731843202774,0.54657135,90697.0,90696.0,1.50009041]
[1731843202973,0.415925,90697.0,90696.0,1.50009041]
[1731843203178,0.54656611,90697.0,90696.0,1.50009041]
[1731843203569,0.54656681,90697.0,90696.0,1.50009041]
[1731843203875,0.54656681,90697.0,90683.0,0.05765918]
[1731843203876,0.055133,90684.0,90683.0,0.00165414]
[1731843204069,0.49143206,90688.0,90683.0,0.05678814]
[1731843204267,0.49143206,90688.0,90684.0,1.5]
[1731843204774,0.13063206,90692.0,90684.0,1.5]
[1731843205070,0.3608,90697.0,90689.0,0.05513]
[1731843205071,0.055129,90691.0,90689.0,0.05513]
[1731843206676,0.055129,90691.0,90690.0,0.00344823]
[1731843206976,0.10876157,90691.0,90690.0,0.00344823]
[1731843207176,0.05363257,90691.0,90690.0,0.05857823]
[1731843207383,0.16323825,90692.0,90690.0,1.50344823]
[1731843207567,0.16323825,90696.0,90695.0,0.055127]
[1731843207767,0.52403825,90697.0,90691.0,0.0316]
[1731843208076,0.3608,90697.0,90696.0,0.055126]
[1731843208272,0.2608,90697.0,90696.0,1.65285398]
[1731843208468,0.055121,90705.0,90696.0,1.65285398]
[1731843208469,0.16323825,90699.0,90696.0,1.59772798]
[1731843208779,0.16323825,90699.0,90698.0,0.055125]
[1731843208995,0.16323825,90701.0,90700.0,0.055124]
[1731843209279,0.16323825,90703.0,90700.0,0.00896442]
[1731843209482,0.16323825,90703.0,90702.0,0.415922]
[1731843209673,0.2510716,90709.0,90706.0,0.05512]
[1731843209674,0.16323825,90707.0,90706.0,0.05512]
[1731843209869,0.16323825,90708.0,90706.0,0.06410023]
[1731843210069,0.16328278,90708.0,90707.0,0.06409923]
[1731843210266,0.16328278,90708.0,90707.0,0.06409954]
[1731843211889,0.16328278,90708.0,90707.0,0.05857237]
[1731843212479,0.16328278,90708.0,90707.0,0.055119]
[1731843212774,0.055117,90712.0,90707.0,0.055119]
[1731843212775,0.16328278,90709.0,90707.0,0.05856642]
[1731843213082,0.16328278,90709.0,90707.0,0.055119]
[1731843213383,0.16328278,90710.0,90708.0,0.16881089]
[1731843213576,0.16328278,90714.0,90713.0,0.055116]
[1731843213779,0.16328278,90715.0,90713.0,0.05856343]
[1731843213990,0.16328278,90715.0,90714.0,1.55856243]
[1731843214483,0.16328278,90716.0,90714.0,1.55856243]
[1731843214678,0.16328278,90716.0,90714.0,1.555115]
[1731843214985,0.10872666,90723.0,90714.0,1.555115]
[1731843214986,0.13061863,90720.0,90716.0,0.055113]
[1731843215183,0.13061863,90720.0,90717.0,0.055113]
[1731843216085,0.13061863,90720.0,90718.0,0.055112]
[1731843216386,0.13061863,90722.0,90714.0,1.5008]
[1731843216690,0.13061863,90722.0,90720.0,0.055111]
[1731843216886,0.13061863,90723.0,90720.0,0.055111]
[1731843217084,0.13061863,90723.0,90714.0,1.50076]
[1731843217385,0.13061863,90727.0,90725.0,0.055108]
[1731843217583,0.13061863,90730.0,90727.0,0.055107]
[1731843217792,0.18572363,90731.0,90727.0,0.055107]
[1731843218180,0.13061863,90731.0,90727.0,0.055107]
[1731843218385,0.42480001,90736.0,90728.0,0.055106]
[1731843218386,0.13061863,90732.0,90728.0,0.055106]
[1731843218683,0.47990201,90736.0,90732.0,0.055104]
[1731843218684,0.13061863,90734.0,90732.0,0.055104]
[1731843218891,0.3608,90736.0,90733.0,0.055103]
[1731843219593,0.3608,90736.0,90735.0,0.055102]
[1731843219783,8.833e-05,90742.0,90740.0,0.055099]
[1731843222090,8.833e-05,90742.0,90740.0,0.26296248]
[1731843222295,8.833e-05,90742.0,90741.0,0.00344863]
[1731843223091,8.833e-05,90742.0,90740.0,0.20423038]
[1731843223392,0.05518633,90742.0,90740.0,0.00012791]
[1731843223602,0.22898775,90741.0,90740.0,0.00012791]
[1731843223792,0.11960118,90741.0,90740.0,0.00012791]
[1731843224398,0.055107,90728.0,90722.0,0.05511]
[1731843224698,0.1302432,90727.0,90725.0,0.055108]
[1731843224900,0.162804,90729.0,90725.0,0.055108]
[1731843225197,0.162804,90730.0,90725.0,0.055108]
[1731843225411,0.162804,90731.0,90726.0,0.05518621]
[1731843225602,0.055105,90730.0,90726.0,0.05518621]
[1731843225895,0.162804,90729.0,90726.0,7.821e-05]
[1731843226300,0.055107,90728.0,90726.0,7.821e-05]
[1731843227095,0.217911,90728.0,90726.0,7.821e-05]
[1731843227790,0.162804,90727.0,90726.0,7.821e-05]
[1731843227989,0.217911,90728.0,90726.0,7.821e-05]
[1731843228608,0.055107,90728.0,90726.0,7.821e-05]
[1731843234217,0.055107,90727.0,90726.0,7.821e-05]
[1731843234418,0.055107,90727.0,90726.0,0.05518621]
[1731843235416,0.49103196,90731.0,90726.0,7.821e-05]
[1731843235621,0.3608,90731.0,90730.0,0.055105]
[1731843236013,0.3608,90731.0,90730.0,1.555105]
[1731843236529,0.13023196,90736.0,90730.0,1.97446554]
[1731843236823,0.13023196,90737.0,90731.0,0.0034466]
[1731843237023,0.121099,90741.0,90737.0,0.055101]
[1731843237024,0.16311489,90738.0,90737.0,0.055101]
[1731843237425,0.05360306,90738.0,90731.0,0.055105]
[1731843237624,0.1631807,90735.0,90734.0,0.055103]
[1731843238311,0.055099,90740.0,90734.0,0.00344638]
[1731843238521,0.05360341,90739.0,90736.0,0.055102]
[1731843239922,0.05360341,90739.0,90737.0,0.055101]
[1731843240526,0.05360341,90738.0,90737.0,0.055101]
[1731843240829,0.05360341,90738.0,90730.0,1.55390716]
[1731843240830,0.05360341,90739.0,90732.0,0.055104]
[1731843241017,0.05360341,90739.0,90730.0,1.55390716]
[1731843241018,0.055102,90736.0,90733.0,0.05854938]
[1731843241215,0.05360341,90735.0,90734.0,0.00344638]
[1731843241415,0.05360341,90735.0,90734.0,0.05854938]
[1731843241926,0.05360341,90735.0,90734.0,0.05854952]
[1731843242123,0.19558149,90737.0,90736.0,0.055102]
[1731843242327,0.05360551,90740.0,90736.0,0.055102]
[1731843242328,0.05360551,90739.0,90736.0,0.05854852]
[1731843242529,0.05360551,90738.0,90737.0,0.00344652]
[1731843243224,0.05360548,90739.0,90737.0,0.00344652]
[1731843243531,0.05360548,90738.0,90737.0,0.055101]
[1731843243723,0.066,90741.0,90739.0,0.0551]
[1731843243923,0.05360548,90740.0,90739.0,0.0551]
[1731843244127,0.03248833,90742.0,90739.0,0.0034464]
[1731843244128,0.05360548,90741.0,90739.0,0.0034464]
[1731843244432,0.19612201,90741.0,90740.0,0.0585454]
[1731843244621,0.05360345,90741.0,90740.0,0.0585454]
[1731843244818,0.19621034,90742.0,90741.0,0.055099]
[1731843245029,0.16353209,90742.0,90741.0,0.0585454]
[1731843245429,0.16353209,90742.0,90741.0,0.16874977]
[1731843246031,8.833e-05,90742.0,90741.0,0.16874977]
[1731843246421,0.16344376,90745.0,90744.0,0.055097]
[1731843246621,0.16344376,90749.0,90748.0,0.055094]
[1731843246824,0.52424376,90750.0,90748.0,0.0034464]
[1731843247023,0.20122201,90758.0,90750.0,0.055093]
[1731843247024,0.16344376,90751.0,90750.0,0.055093]
[1731843247231,0.16344376,90752.0,90751.0,0.055093]
[1731843247422,0.16344376,90753.0,90751.0,0.0034464]
[1731843247619,0.16344376,90755.0,90752.0,0.0034464]
[1731843247834,0.16344376,90755.0,90748.0,0.09392]
[1731843247835,0.16344376,90756.0,90753.0,1.5034464]
[1731843248040,0.16344376,90757.0,90754.0,0.0034464]
[1731843248332,0.00010081,90760.0,90753.0,1.5]
[1731843248333,0.16354457,90760.0,90759.0,0.055088]
[1731843248543,0.16354457,90760.0,90759.0,0.0585344]
[1731843248544,0.00010081,90760.0,90759.0,0.0585344]
[1731843248728,0.00010081,90760.0,90759.0,0.0034464]
[1731843248929,0.05518781,90760.0,90759.0,0.0034464]
[1731843249231,0.00010081,90760.0,90759.0,0.0034464]
[1731843249424,0.00010081,90760.0,90759.0,0.0585344]
[1731843249623,0.00010081,90760.0,90759.0,0.0034464]
[1731843249826,0.05518781,90760.0,90759.0,0.0034464]
[1731843250037,0.05518781,90760.0,90756.0,0.05502971]
[1731843250229,0.055088,90759.0,90757.0,0.00344569]
[1731843250432,0.055088,90759.0,90754.0,0.055091]
[1731843250433,0.00010081,90760.0,90754.0,0.055091]
[1731843250624,0.13060483,90756.0,90755.0,0.00344568]
[1731843251134,0.13060483,90756.0,90755.0,0.05853568]
[1731843251938,0.00010081,90760.0,90755.0,0.05853568]
[1731843251939,0.16354457,90760.0,90755.0,0.05853568]
[1731843252128,0.16354457,90760.0,90756.0,0.00344568]
[1731843252330,0.16354457,90760.0,90755.0,0.05509]
[1731843252935,0.16354457,90760.0,90759.0,0.055088]
[1731843253137,0.00010081,90760.0,90759.0,0.055088]
[1731843253635,0.00010081,90760.0,90759.0,0.05853355]
[1731843253835,0.13069158,90760.0,90759.0,0.05853355]
[1731843254024,0.13069158,90760.0,90759.0,0.055088]
[1731843254431,0.00010081,90760.0,90759.0,0.055088]
[1731843255328,0.13069158,90760.0,90759.0,0.05853351]
[1731843255530,0.00010081,90760.0,90759.0,0.05853351]
[1731843256540,0.00010081,90760.0,90759.0,0.16871481]
[1731843256738,0.49195078,90766.0,90765.0,0.055084]
[1731843256938,0.49139077,90766.0,90765.0,0.055084]
[1731843257539,0.13224389,90767.0,90765.0,1.5]
[1731843257738,0.13224389,90767.0,90766.0,0.055083]
[1731843257739,0.00165312,90767.0,90766.0,0.055083]
[1731843258438,0.13059077,90774.0,90773.0,0.055079]
[1731843258642,0.00014181,90775.0,90774.0,0.055079]
[1731843261733,0.00014181,90775.0,90771.0,0.05383381]
[1731843261734,0.05521981,90775.0,90771.0,0.05383381]
[1731843262042,0.05521981,90775.0,90765.0,1.50076]
[1731843262043,0.05508,90772.0,90766.0,0.055083]
[1731843262253,0.3608,90773.0,90762.0,0.055086]
[1731843262435,0.13033851,90763.0,90762.0,0.055086]
[1731843262646,0.055083,90767.0,90763.0,0.055085]
[1731843262836,0.0624,90766.0,90763.0,0.055085]
[1731843263648,0.0624,90766.0,90759.0,0.02205216]
[1731843263649,0.3608,90765.0,90759.0,0.02205216]
[1731843263831,0.13037435,90760.0,90759.0,0.02205216]
[1731843264036,0.055086,90763.0,90760.0,0.055087]
[1731843264344,0.16344376,90762.0,90760.0,0.055087]
[1731843265040,0.16344376,90764.0,90762.0,0.055086]
[1731843265240,0.16344376,90765.0,90762.0,0.055086]
[1731843265456,0.117484,90766.0,90762.0,0.055086]
[1731843265457,0.16344376,90764.0,90762.0,0.055086]
[1731843266354,0.16344376,90763.0,90762.0,0.055086]
[1731843266844,0.16344376,90763.0,90762.0,0.05853143]
[1731843267237,0.117484,90766.0,90762.0,0.05853143]
[1731843267438,0.117484,90766.0,90762.0,0.055086]
[1731843267946,0.117484,90766.0,90759.0,0.02205216]
[1731843268151,0.117484,90766.0,90764.0,0.055084]
[1731843268348,0.0624,90766.0,90765.0,0.055084]
[1731843268847,0.13047314,90770.0,90768.0,0.055082]
[1731843269049,0.13047314,90771.0,90768.0,0.055082]
[1731843269438,0.13047314,90770.0,90768.0,0.055082]
[1731843269762,0.13047314,90770.0,90759.0,0.02205216]
[1731843269955,0.13047314,90770.0,90766.0,0.055083]
[1731843270450,0.13047314,90769.0,90759.0,0.02205216]
[1731843270651,0.13047314,90770.0,90760.0,0.36424532]
[1731843270849,0.13047314,90770.0,90761.0,0.11361509]
[1731843271039,0.13047314,90770.0,90762.0,0.00344532]
[1731843271360,0.13047314,90770.0,90763.0,0.00344532]
[1731843271539,0.13047314,90772.0,90771.0,0.05508]
[1731843271841,0.03274181,90775.0,90760.0,0.415887]
[1731843271842,0.13047314,90774.0,90760.0,0.415887]
[1731843272042,0.16321495,90775.0,90761.0,0.00895737]
[1731843272257,0.16321495,90775.0,90774.0,0.055079]
[1731843272258,0.00014181,90775.0,90774.0,0.055079]
[1731843272456,0.00014181,90775.0,90774.0,1.555079]
[1731843274846,0.00014181,90775.0,90774.0,0.055079]
[1731843275059,0.00014181,90775.0,90774.0,0.05852382]
[1731843275944,0.00014181,90775.0,90769.0,0.3608]
[1731843276257,0.055083,90767.0,90761.0,0.055086]
[1731843276456,0.055083,90767.0,90763.0,0.055085]
[1731843276457,0.13079195,90765.0,90763.0,0.055085]
[1731843276651,0.13083947,90764.0,90763.0,0.055085]
[1731843277058,0.19584376,90766.0,90760.0,1.5]
[1731843277362,0.0324,90766.0,90765.0,0.055084]
[1731843277558,0.19584376,90766.0,90765.0,0.055084]
[1731843277740,0.0324,90766.0,90765.0,0.055084]
[1731843277947,0.19584376,90766.0,90765.0,0.055084]
[1731843278753,0.0324,90766.0,90765.0,0.055084]
[1731843280260,0.0324,90766.0,90765.0,0.06059653]
[1731843280457,0.19584376,90766.0,90765.0,0.06059653]
[1731843280754,0.0324,90766.0,90765.0,0.055084]
[1731843280942,0.055086,90761.0,90760.0,1.50076]
[1731843281147,0.055086,90761.0,90748.0,0.26662502]
[1731843281148,0.16361928,90761.0,90754.0,0.055091]
[1731843281347,0.16361928,90759.0,90755.0,0.00551311]
[1731843281650,0.055089,90758.0,90756.0,0.06060211]
[1731843281848,0.16361928,90759.0,90751.0,1.5]
[1731843281849,0.16361928,90759.0,90757.0,0.00551311]
[1731843282047,0.16361928,90760.0,90758.0,0.06060097]
[1731843282249,0.05359131,90759.0,90758.0,0.055088]
[1731843282461,0.05359131,90760.0,90758.0,0.055088]
[1731843284962,0.05359131,90760.0,90759.0,0.055088]
[1731843286465,0.0332,90765.0,90760.0,0.055087]
[1731843286660,0.15185477,90764.0,90760.0,0.055087]
[1731843287164,0.15185477,90764.0,90752.0,0.1101813]
[1731843287165,0.15185477,90764.0,90763.0,0.055085]
[1731843287352,0.05359093,90764.0,90763.0,0.055085]
[1731843287560,0.19634117,90764.0,90763.0,0.055085]
[1731843287755,0.0535874,90764.0,90763.0,0.055085]
[1731843287959,0.0535874,90764.0,90763.0,0.05853027]
[1731843288163,0.19634117,90766.0,90765.0,0.055084]
[1731843288363,0.19634117,90766.0,90765.0,1.555084]
[1731843288662,0.19634117,90766.0,90765.0,1.55852926]
[1731843289055,0.19634117,90766.0,90765.0,1.555084]
[1731843289263,0.19363239,90770.0,90769.0,0.055082]
[1731843289963,0.03,90770.0,90769.0,0.055082]
[1731843291366,0.08358599,90770.0,90769.0,0.055082]
[1731843292460,0.03,90770.0,90769.0,0.05852726]
[1731843292660,0.19370466,90770.0,90769.0,0.05852726]
[1731843293067,0.03,90770.0,90769.0,0.05852726]
[1731843293363,0.03,90770.0,90765.0,1.5]
[1731843293364,0.05358484,90774.0,90768.0,0.3608]
[1731843293571,0.00014181,90775.0,90773.0,0.055079]
[1731843293771,0.00014181,90775.0,90774.0,0.055079]
[1731843294462,0.00014181,90775.0,90774.0,0.05852404]
[1731843294667,0.13109091,90775.0,90774.0,0.06403592]
[1731843294874,0.00014181,90775.0,90774.0,0.06403592]
[1731843295366,0.00014181,90775.0,90774.0,1.56403592]
[1731843296376,0.00014181,90775.0,90774.0,1.55852404]
[1731843296671,0.00014181,90775.0,90774.0,1.5640356]
[1731843297166,0.05371933,90775.0,90774.0,1.5640356]
[1731843298872,0.19634117,90779.0,90778.0,0.055076]
[1731843299070,0.19634117,90779.0,90778.0,0.05852104]
[1731843299271,0.3608,90786.0,90785.0,0.055072]
[1731843299472,0.3608,90786.0,90785.0,1.555072]
[1731843299473,0.45858925,90786.0,90785.0,1.555072]
[1731843299872,0.45871165,90786.0,90785.0,1.555072]
[1731843300061,0.09791165,90786.0,90785.0,1.555072]
[1731843300477,0.0001224,90786.0,90785.0,1.55851658]
[1731843300869,0.0001224,90786.0,90785.0,1.555072]
[1731843301470,0.0001224,90786.0,90785.0,1.55851657]
[1731843302170,0.0980001,90786.0,90785.0,1.555072]
[1731843302575,0.0980001,90786.0,90785.0,1.55521006]
[1731843304285,0.0001224,90786.0,90785.0,1.55521006]
[1731843305469,0.0001224,90786.0,90785.0,1.6139017]
[1731843305677,0.0001224,90786.0,90785.0,1.55865461]
[1731843305880,0.0551934,90786.0,90785.0,0.00358261]
[1731843306069,0.055077,90777.0,90772.0,0.05508]
[1731843306270,0.117178,90776.0,90772.0,0.05508]
[1731843306469,0.13075956,90774.0,90769.0,1.50076]
[1731843306686,0.055081,90770.0,90766.0,0.05428776]
[1731843306891,0.055081,90770.0,90756.0,0.19756291]
[1731843306892,0.055083,90766.0,90760.0,0.055087]
[1731843307072,0.055083,90766.0,90764.0,8.315e-05]
[1731843307270,0.18584256,90766.0,90764.0,1.50008315]
[1731843307485,0.18584256,90766.0,90764.0,1.50084315]
[1731843307778,0.055083,90766.0,90764.0,1.50084315]
[1731843308177,0.3608,90770.0,90765.0,0.05673666]
[1731843308383,0.415881,90770.0,90765.0,0.05673666]
[1731843308578,0.41648101,90770.0,90765.0,0.05673666]
[1731843308778,0.415881,90770.0,90765.0,0.05673666]
[1731843309274,0.0316,90769.0,90766.0,0.055083]
[1731843309682,0.16339839,90767.0,90766.0,0.055083]
[1731843310574,0.086682,90769.0,90766.0,0.055083]
[1731843310575,0.16339839,90769.0,90768.0,0.055082]
[1731843310775,0.16339839,90775.0,90766.0,0.1652558]
[1731843310975,0.1307309,90770.0,90767.0,0.055083]
[1731843311170,0.1307309,90770.0,90769.0,0.055082]
[1731843311481,0.055081,90770.0,90768.0,0.11017037]
[1731843311681,0.055081,90770.0,90765.0,0.00165266]
[1731843311876,0.055081,90770.0,90765.0,0.05673666]
[1731843311877,0.16342196,90768.0,90765.0,0.05673666]
[1731843312084,0.16342196,90768.0,90766.0,0.055083]
[1731843312389,0.3608,90771.0,90765.0,0.00165266]
[1731843312390,0.0988457,90767.0,90765.0,0.00165266]
[1731843312582,0.0988457,90766.0,90765.0,0.00165266]
[1731843314179,0.05358704,90766.0,90765.0,0.05673666]
[1731843314384,0.05358704,90766.0,90765.0,0.00165266]
[1731843314582,0.19615987,90767.0,90766.0,0.055083]
[1731843314891,0.19615994,90767.0,90766.0,0.055083]
[1731843315082,0.10866957,90767.0,90765.0,0.00165266]
[1731843315285,0.05358657,90766.0,90765.0,0.00165266]
[1731843316184,0.05358657,90766.0,90764.0,1.50092315]
[1731843316485,0.05358657,90766.0,90764.0,1.50008315]
[1731843316791,0.15290285,90765.0,90764.0,1.55516815]
[1731843316987,0.05358657,90765.0,90764.0,1.55516815]